fUSD/lending_fUSD_20240520
["ID","MTS","AMOUNT","RATE_DAILY","PERIOD"]
[327532451,1716180633813,-1000.0,0.00012895,2]
[327532452,1716180633822,-200.0,0.00012895,2]
[327532453,1716180633833,-1000.0,0.00012895,2]
[327532454,1716180633842,-1000.0,0.00012895,2]
[327532455,1716180633851,-500.0,0.00012895,2]
[327532456,1716180633860,-500.0,0.00012895,2]
[327532457,1716180633870,-687.86555454,0.00012898,2]
[327532458,1716180633882,-687.86555454,0.00012898,2]
[327532459,1716180633891,-687.86555454,0.00012898,2]
[327532460,1716180633901,-687.86555454,0.00012898,2]
[327532461,1716180633910,-687.86555454,0.00012898,2]
[327532462,1716180633922,-687.86555454,0.00012898,2]
[327532463,1716180633931,-687.86555454,0.00012898,2]
[327532464,1716180633941,-318.00921075,0.00012898,2]
[327532465,1716180633952,-3657.491,0.00012898,2]
[327532466,1716180633961,-318.00921073,0.00012898,2]
[327532467,1716180633971,-318.00921073,0.00012899,2]
[327532468,1716180633980,-318.00921073,0.00012899,2]
[327532469,1716180633988,-318.00921073,0.000129,2]
[327532470,1716180633998,-158.43504908,0.000129,2]
[327532471,1716180634007,-10000.0,0.000129,2]
[327532472,1716180634017,-687.86555454,0.000129,2]
[327532473,1716180634027,-674.63870287,0.000129,2]
[327532474,1716180634036,-400.0,0.000129,4]
[327532475,1716180634045,-1000.0,0.000129,2]
[327532476,1716180634054,-7220.1409,0.000129,2]
[327532477,1716180634063,-550.02774458,0.000129,2]
[327532478,1716180634077,-563.31082635,0.000129,2]
[327532479,1716180634087,-318.00921073,0.000129,2]
[327532480,1716180634096,-557.17,0.00012985,2]
[327532481,1716180634106,-166.78278404,0.0001299,2]
[327532482,1716180634117,-2235.31262442,0.00012996,2]
[327532483,1716180634128,-155.0,0.00012996,2]
[327532484,1716180634140,-189.62304337,0.00012997,2]
[327532485,1716180634151,-155.23465202,0.00012997,2]
[327532486,1716180634163,-306.15892917,0.00012997,2]
[327532487,1716180634173,-247.87349555,0.00012997,2]
[327532488,1716180634184,-157.052013,0.00012997,2]
[327532489,1716180634195,-157.052013,0.00012997,2]
[327532490,1716180634206,-157.052013,0.00012997,2]
[327532491,1716180634217,-157.052013,0.00012997,2]
[327532492,1716180634227,-157.052013,0.00012997,2]
[327532493,1716180634236,-157.052013,0.00012997,2]
[327532494,1716180634247,-6215.8424114,0.00012997,2]
[327532495,1716180634257,-2019.9195345,0.00012997,2]
[327532496,1716180634267,-28010.03677114,0.00012997,2]
[327532497,1716180634288,-3330.29913476,0.00012997,2]
[327532498,1716180634299,-5503.79960271,0.00012997,2]
[327532499,1716180634312,-10.68797299,0.00012997,2]
[327532500,1716180634324,-27148.6110561,0.00012997,2]
[327532501,1716180634334,-3849.9194332,0.00012997,2]
[327532502,1716180634343,-2074.0511956,0.00012997,2]
[327532503,1716180634353,-162.47916166,0.00012998,2]
[327532504,1716180634362,-19616.61939022,0.00012998,2]
[327532505,1716180634372,-209.03382759,0.00012998,2]
[327532506,1716180634381,-157.052012,0.00012998,2]
[327532507,1716180634391,-218.35624557,0.00012998,2]
[327532508,1716180634400,-157.052012,0.00012998,2]
[327532509,1716180634409,-157.052012,0.00012998,2]
[327532510,1716180634419,-157.052012,0.00012998,2]
[327532511,1716180634428,-157.052012,0.00012998,2]
[327532512,1716180634438,-157.052012,0.00012998,2]
[327532513,1716180634447,-3007.86436353,0.00012998,2]
[327532514,1716180634457,-155.0,0.00012998,2]
[327532515,1716180634468,-200.8236604,0.00012998,2]
[327532516,1716180634477,-35357.46203519,0.00012998,2]
[327532517,1716180634487,-155.70475269,0.00012998,2]
[327532518,1716180634500,-285.93045245,0.00012998,2]
[327532519,1716180634509,-157.53266014,0.00012998,2]
[327532520,1716180634519,-156.77238812,0.00012998,2]
[327532521,1716180634532,-262.77384878,0.00012998,2]
[327532522,1716180634542,-5562.38640349,0.00012998,2]
[327532523,1716180634552,-156.75017604,0.00012998,2]
[327532524,1716180634563,-206.76817049,0.00012998,2]
[327532525,1716180634572,-2232.51246975,0.00012998,2]
[327532526,1716180634582,-155.65760589,0.00012998,2]
[327532527,1716180634592,-155.6424642,0.00012998,2]
[327532528,1716180634602,-2185.42797665,0.00012998,2]
[327532529,1716180634611,-441.30420729,0.00012998,2]
[327532530,1716180634621,-297.34526408,0.00012998,2]
[327532531,1716180634631,-155.37759897,0.00012998,2]
[327532532,1716180634640,-349.94592878,0.00012998,2]
[327532533,1716180634650,-159.31000625,0.00012998,2]
[327532534,1716180634659,-160.4650502,0.00012998,2]
[327532535,1716180634669,-200.37364009,0.00012998,2]
[327532536,1716180634678,-200.41602903,0.00012998,2]
[327532537,1716180634688,-1370.55787909,0.00012998,2]
[327532538,1716180634697,-740.15777175,0.00012998,2]
[327532539,1716180634707,-403.13024514,0.00012998,2]
[327532540,1716180634718,-157.052013,0.00012998,2]
[327532541,1716180634729,-3620.497,0.00012999,2]
[327532542,1716180634739,-1000.0,0.00012999,2]
[327532543,1716180634750,-178.72891474,0.00012999,2]
[327532544,1716180634760,-199.84988869,0.00012999,2]
[327532545,1716180634771,-784.29717242,0.00012999,2]
[327532546,1716180634781,-330901.35388344,0.00013,2]
[327532547,1716180634794,-82998.27998979,0.00013,2]
[327532548,1716180634833,-2420.67069498,0.00013,2]
[327532549,1716180634874,-619.65012665,0.00013,2]
[327532550,1716180634907,-187328.47235191,0.00013,2]
[327532551,1716180634921,-871.5527439,0.00013,2]
[327532552,1716180634933,-485.80288671,0.00013,2]
[327532553,1716180634960,-1157904.87502916,0.00013,2]
[327532554,1716180634973,-218065.62282362,0.00013,2]
[327532592,1716180637467,-670.302,0.00013,2]
[327532604,1716180637501,-1726.98413778,0.00013,2]
[327532611,1716180637538,-392.2970586,0.000129,2]
[327532613,1716180637548,-10442.0633544,0.00013,2]
[327532614,1716180637591,-794.73235085,0.00013,2]
[327532615,1716180637617,-771.07115909,0.00013,2]
[327532616,1716180637629,-882.06164822,0.00013,2]
[327532617,1716180637779,-3596.35,0.00013,2]
[327532618,1716180637819,-5488016.13829591,0.00013,2]
[327532619,1716180637832,-384117.3900669,0.00013,2]
[327532633,1716180639636,-17076.35928726,0.00013,2]
[327532634,1716180639650,-8570.79293499,0.00013,2]
[327532635,1716180639661,-11562.0965064,0.00013,2]
[327532636,1716180639905,-1393.59543992,0.00013,2]
[327532637,1716180639916,-1561.34294692,0.00013,2]
[327532697,1716180642924,-275.47835477,0.00012997,2]
[327532712,1716180645492,-155.0,0.00012996,2]
[327532713,1716180645506,-1401.42153005,0.00012997,2]
[327532714,1716180645524,-1678.43126,0.00012997,2]
[327532715,1716180645561,-1420.75318068,0.00012997,2]
[327532716,1716180645576,-1370.55787909,0.00012999,2]
[327532717,1716180645592,-848.07574023,0.00013,2]
[327532718,1716180645960,-263.63284643,0.000129,2]
[327532761,1716180664823,999.04,0.00025,30]
[327532763,1716181021416,161.43,0.00024329,30]
[327532764,1716181263685,150.5,0.0001959,15]
[327532765,1716181264156,150.5,0.0001958,15]
[327532766,1716181264629,204.21,0.0001957,15]
[327532767,1716181383979,150.5,0.0001959,15]
[327532768,1716181384251,150.5,0.0001958,15]
[327532769,1716181386670,150.5,0.0001957,15]
[327532770,1716181500972,161.43,0.00024329,30]
[327532773,1716181726926,-155.0,9.272e-05,2]
[327532774,1716181726948,-525.90822352,9.272e-05,2]
[327532775,1716181726970,-1245.32000866,9.273e-05,2]
[327532776,1716181726993,-1056.93156648,9.273e-05,2]
[327532777,1716181727014,-302.67036282,9.274e-05,2]
[327532778,1716181727036,-521.07,9.275e-05,2]
[327532779,1716181727058,-193.09983852,9.827e-05,2]
[327532780,1716181729042,-308.90016148,9.827e-05,2]
[327532781,1716181729063,-1020.63890226,9.839e-05,2]
[327532782,1716181729084,-614.77,0.00011076,2]
[327532783,1716181729105,-280.71,0.00011091,2]
[327532784,1716181729126,-1774.98093626,0.00011117,2]
[327532785,1716181729739,-4000.0,0.00011117,2]
[327532786,1716181730414,-4000.0,0.00011117,2]
[327532787,1716181730750,-4000.0,0.00011117,2]
[327532788,1716181731186,-4000.0,0.00011117,2]
[327532789,1716181731692,-4000.0,0.00011117,2]
[327532790,1716181732512,-2115.01906374,0.00011117,2]
[327532791,1716181732548,-1884.98093626,0.00011126,2]
[327532802,1716181769141,-881.0,8.345e-05,2]
[327532804,1716181788724,362.48,0.0003,120]
[327532808,1716181832328,-4204.61369743,8.344e-05,2]
[327532809,1716181832338,-8290.29991803,8.344e-05,2]
[327532810,1716181832347,-157.37297207,0.0001047,2]
[327532811,1716181832357,-197.11242057,0.00011126,2]
[327532812,1716181832387,-883.54995,0.00011126,2]
[327532813,1716181832399,-846.47,0.00011126,2]
[327532814,1716181832410,-7.02669317,0.00011126,2]
[327532815,1716181832423,-150.0,0.00011142,2]
[327532816,1716181832438,-188.19,0.0001115,2]
[327532817,1716181832448,-5.01330673,0.0001115,2]
[327532818,1716181832459,-337.02669327,0.0001115,2]
[327532819,1716181832471,-162.67,0.0001115,2]
[327532820,1716181832480,-336.04,0.0001115,2]
[327532821,1716181832489,-250.0,0.00011156,2]
[327532822,1716181832499,-164.2,0.00011197,2]
[327532823,1716181832512,-2332.79,0.00011231,2]
[327532824,1716181832522,-250.0,0.00011333,2]
[327532825,1716181832532,-299.99,0.00011333,2]
[327532826,1716181832541,-2904.58,0.00011333,2]
[327532827,1716181832550,-2462.09538575,0.00011333,2]
[327532828,1716181832562,-2821.52927622,0.00011333,2]
[327532829,1716181832574,-34395.68533803,0.00011333,2]
[327532830,1716181832583,-158.13,0.00011377,2]
[327532831,1716181832592,-158.13,0.00011462,2]
[327532832,1716181832602,-1200.97,0.00011535,2]
[327532833,1716181832612,-521.07,0.00011539,2]
[327532834,1716181832621,-167.91,0.00011539,2]
[327532836,1716181832631,-158.13,0.00011546,2]
[327532837,1716181832640,-150.0,0.00011566,2]
[327532838,1716181832650,-10261.3431,0.00011567,2]
[327532839,1716181832659,-719.29,0.00011605,2]
[327532840,1716181832668,-158.13,0.00011631,2]
[327532841,1716181832678,-999.99,0.00011634,2]
[327532843,1716181832687,-158.13,0.00011716,2]
[327532845,1716181832696,-162.3,0.00011756,2]
[327532846,1716181832705,-158.13,0.000118,2]
[327532848,1716181832715,-158.13,0.00011885,2]
[327532850,1716181832726,-150.99,0.00011901,2]
[327532852,1716181832735,-158.13,0.0001197,2]
[327532854,1716181832744,-209.45,0.00012055,2]
[327532856,1716181832754,-302.67036282,0.00012347,2]
[327532858,1716181832764,-313.61870849,0.00012348,2]
[327532860,1716181832773,-280.71,0.00012477,2]
[327532862,1716181832782,-164.2,0.00012597,2]
[327532863,1716181832791,-210.0,0.00012723,2]
[327532865,1716181832801,-178.44419261,0.00012869,2]
[327532867,1716181832810,-174.08834988,0.00012894,2]
[327532869,1716181832820,-1000.0,0.00012895,2]
[327532871,1716181832829,-1000.0,0.00012896,2]
[327532873,1716181832839,-1000.0,0.00012896,2]
[327532875,1716181832848,-500.0,0.00012896,2]
[327532877,1716181832857,-152.85901217,0.00012898,2]
[327532879,1716181832867,-1000.0,0.00012898,2]
[327532881,1716181832877,-2077.9503,0.00012898,2]
[327532883,1716181832886,-137.59735399,0.000129,2]
[327532885,1716181832894,-3711.838,0.000129,2]
[327532887,1716181832904,-274.6135,0.000129,2]
[327532889,1716181832913,-1000.0,0.000129,2]
[327532891,1716181832922,-8930.9458,0.000129,2]
[327532893,1716181832931,-166.95214797,0.000129,2]
[327532895,1716181832941,-172.66788946,0.000129,2]
[327532897,1716181832950,-928.3984,0.000129,2]
[327532899,1716181832959,-1895.685,0.000129,2]
[327532901,1716181832969,-5578.0,0.000129,2]
[327532903,1716181832979,-16890.3877,0.000129,2]
[327532905,1716181832988,-181.87914729,0.000129,2]
[327532907,1716181832998,-310.48007206,0.0001299,2]
[327532909,1716181833007,-310.48007206,0.0001299,2]
[327532911,1716181833016,-310.48007206,0.0001299,2]
[327532913,1716181833026,-2829.4423443,0.00012994,2]
[327532915,1716181833036,-16904.2232706,0.00012994,2]
[327532917,1716181833046,-5973.9481113,0.00012994,2]
[327532919,1716181833055,-1494.4286787,0.00012994,2]
[327532921,1716181833065,-10751.91396238,0.00012996,2]
[327532923,1716181833078,-15970.52623937,0.00012996,2]
[327532925,1716181833087,-157.052014,0.00012997,2]
[327532927,1716181833097,-157.052014,0.00012997,2]
[327532929,1716181833107,-157.052014,0.00012997,2]
[327532931,1716181833116,-157.052014,0.00012997,2]
[327532933,1716181833125,-157.052014,0.00012997,2]
[327532935,1716181833135,-157.052014,0.00012997,2]
[327532937,1716181833144,-157.052014,0.00012997,2]
[327532939,1716181833153,-157.052014,0.00012997,2]
[327532941,1716181833162,-157.052014,0.00012997,2]
[327532943,1716181833174,-157.052014,0.00012997,2]
[327532945,1716181833184,-686.12362517,0.00012998,2]
[327532947,1716181833193,-1384.93955594,0.00012998,2]
[327532949,1716181833203,-2328.27154155,0.00012998,2]
[327532951,1716181833212,-325.6841531,0.00012998,2]
[327532954,1716181833231,-209.33059875,0.00012998,2]
[327532956,1716181833244,-155.0,0.00012998,2]
[327532958,1716181833254,-1000.0,0.00012998,2]
[327532960,1716181833264,-3005.85209751,0.00012998,2]
[327532962,1716181833274,-157.052013,0.00012998,2]
[327532964,1716181833284,-157.052013,0.00012998,2]
[327532966,1716181833294,-157.052013,0.00012998,2]
[327532968,1716181833304,-157.052013,0.00012998,2]
[327532970,1716181833314,-157.052013,0.00012998,2]
[327532972,1716181833324,-157.052013,0.00012998,2]
[327532974,1716181833333,-157.052013,0.00012998,2]
[327532976,1716181833343,-157.052013,0.00012998,2]
[327532978,1716181833352,-157.052014,0.00012998,2]
[327532980,1716181833363,-157.052014,0.00012998,2]
[327532982,1716181833372,-157.052014,0.00012998,2]
[327532984,1716181833382,-257.64460599,0.00012998,2]
[327532986,1716181833392,-284.141812,0.00012998,2]
[327532988,1716181833402,-163.0916546,0.00012998,2]
[327532991,1716181833412,-753.49584399,0.00012998,2]
[327532993,1716181833424,-1789.74382833,0.00012998,2]
[327532995,1716181833435,-3709.811,0.00012998,2]
[327532997,1716181833444,-4754.59241405,0.00012999,2]
[327532999,1716181833454,-237.26077065,0.00012999,2]
[327533001,1716181833463,-395612.21494865,0.00013,2]
[327533003,1716181833483,-358.22005688,0.00013,2]
[327533006,1716181833495,-1357.62885533,0.00013,2]
[327533008,1716181833509,-5461.11031969,0.00013,2]
[327533011,1716181833522,-14910.33710706,0.00013,2]
[327533025,1716181837787,-597.4,0.00013,2]
[327533026,1716181837860,-323.28409323,0.00013,2]
[327533027,1716181837872,-792552.59416924,0.00013,2]
[327533028,1716181837915,-21847.25615211,0.00013,2]
[327533029,1716181838033,-248646.61300931,0.00013,2]
[327533030,1716181838043,-5239369.5252866,0.00013,2]
[327533031,1716181838054,-384117.3900669,0.00013,2]
[327533038,1716181840004,-2501.55969783,0.00013,2]
[327533039,1716181842233,-1858.60000013,0.00013,2]
[327533119,1716181843033,-1685893.38116992,0.00013,2]
[327533126,1716181843098,-1643.58856501,0.00013,2]
[327533133,1716181843160,-350.81999996,0.00013,2]
[327533295,1716181846808,-1211.45319428,0.00013,2]
[327533296,1716181846999,-782.85,0.00013,2]
[327533297,1716181847011,-1682.2566,0.00013,2]
[327533303,1716181863732,858.0,0.0001959,15]
[327533304,1716181863806,150.67,0.0001959,15]
[327533305,1716181864246,858.0,0.0001958,15]
[327533306,1716181864626,150.79,0.0001959,15]
[327533307,1716181864768,858.0,0.0001957,15]
[327533308,1716181864820,184.25,0.0001959,15]
[327533309,1716181865168,269.07,0.0001959,15]
[327533310,1716181865229,858.0,0.0001999,15]
[327533311,1716181865739,858.0,0.0001998,15]
[327533312,1716181866269,858.0,0.0001997,15]
[327533313,1716181983223,206.0,0.0001959,15]
[327533314,1716181985239,344.0,0.0001959,15]
[327533315,1716181985806,344.0,0.0001958,15]
[327533316,1716181986374,344.0,0.0001957,15]
[327533317,1716181987797,176.0,0.0001959,15]
[327533318,1716181987848,200.0,0.0001959,15]
[327533319,1716181988123,176.0,0.0001958,15]
[327533320,1716181988638,176.0,0.0001957,15]
[327533323,1716182104329,206.0,0.0001959,15]
[327533324,1716182106336,240.0,0.0001959,15]
[327533325,1716182107241,240.0,0.0001958,15]
[327533326,1716182108007,240.0,0.0001957,15]
[327533327,1716182224413,150.5,0.0001959,15]
[327533328,1716182224909,150.5,0.0001958,15]
[327533329,1716182224970,168.0,0.0001959,15]
[327533330,1716182225492,150.5,0.0001957,15]
[327533331,1716182226119,168.0,0.0001958,15]
[327533332,1716182226672,168.0,0.0001957,15]
[327533333,1716182313734,161.43,0.00024329,30]
[327533334,1716182343745,150.5,0.0001959,15]
[327533335,1716182344294,150.5,0.0001958,15]
[327533336,1716182344786,248.95,0.0001957,15]
[327533337,1716182344882,150.5,0.0001959,15]
[327533338,1716182345396,150.5,0.0001958,15]
[327533339,1716182346490,150.5,0.0001957,15]
[327533340,1716182447833,1022.4722481,0.0003,120]
[327533341,1716182464369,150.5,0.0001959,15]
[327533342,1716182464929,150.5,0.0001958,15]
[327533343,1716182465043,150.5,0.0001959,15]
[327533344,1716182465453,150.5,0.0001957,15]
[327533345,1716182466012,150.5,0.0001958,15]
[327533346,1716182466536,150.5,0.0001957,15]
[327533347,1716182522045,-150.0,0.00010048,2]
[327533348,1716182522085,-1205.74461398,0.00010048,2]
[327533349,1716182522124,-2644.25538602,0.00010049,2]
[327533350,1716182522669,-4000.0,0.00010049,2]
[327533351,1716182523289,-4000.0,0.00010049,2]
[327533352,1716182523874,-4000.0,0.00010049,2]
[327533353,1716182585781,281.75,0.0001959,15]
[327533354,1716182705157,150.5,0.0001958,15]
[327533355,1716182705652,179.32,0.0001957,15]
[327533356,1716182834828,161.43,0.00024329,30]
[327533375,1716183031967,-155.0,9.72e-05,2]
[327533376,1716183031977,-338.36047548,9.721e-05,2]
[327533377,1716183032074,-484.55762474,9.622e-05,2]
[327533378,1716183032448,-474.37904849,9.622e-05,2]
[327533379,1716183032459,-714.60802877,9.622e-05,2]
[327533380,1716183032468,-311.79021216,9.721e-05,2]
[327533381,1716183032535,-152.84931236,9.721e-05,2]
[327533382,1716183032544,-476.9,9.875e-05,2]
[327533383,1716183032553,-1305.48295073,0.00010049,2]
[327533384,1716183032564,-25091.32799906,0.00010049,2]
[327533385,1716183032576,-288.85534492,0.00010049,2]
[327533386,1716183032587,-1763.99,0.00010049,2]
[327533392,1716183037967,-437.70943335,0.00010049,2]
[327533393,1716183038081,-4325.76272,0.00010049,2]
[327533394,1716183038094,-3032.0,0.00010049,2]
[327533395,1716183038331,-363.07044995,9.67e-05,2]
[327533396,1716183038343,-8315.83130123,9.67e-05,2]
[327533397,1716183038353,-11847.76869877,0.00010049,2]
[327533398,1716183038365,-240288.34007508,0.00010049,2]
[327533399,1716183038375,-30000.0,0.00011,2]
[327533400,1716183038385,-167.91,0.00011333,2]
[327533401,1716183038395,-250.0,0.0001152,2]
[327533403,1716183038405,-162.3,0.00011582,2]
[327533405,1716183038414,-250.0,0.00011719,2]
[327533407,1716183038424,-168.43,0.00011728,2]
[327533408,1716183038434,-1200.0,0.00011833,3]
[327533410,1716183038443,-499.99,0.00011833,2]
[327533412,1716183038454,-3237.2,0.00011834,2]
[327533414,1716183038463,-23900.0,0.00011897,2]
[327533416,1716183038473,-164.99,0.00011911,2]
[327533419,1716183038483,-831.57,0.00011911,2]
[327533421,1716183038492,-28894.65,0.00011998,2]
[327533424,1716183038502,-476.9,0.00012138,2]
[327533427,1716183038511,-173.93,0.00012333,2]
[327533430,1716183038521,-161.03,0.00012761,2]
[327533432,1716183038530,-161.03,0.00012772,2]
[327533434,1716183038539,-161.03,0.00012783,2]
[327533435,1716183038549,-3628.56,0.0001279,2]
[327533437,1716183038560,-161.03,0.00012793,2]
[327533440,1716183038570,-9017.477,0.000128,2]
[327533441,1716183038580,-669.14014896,0.000128,2]
[327533443,1716183038589,-161.03,0.00012804,2]
[327533444,1716183038599,-161.03,0.00012815,2]
[327533445,1716183038608,-161.03,0.00012825,2]
[327533446,1716183038618,-3701.042,0.000129,2]
[327533447,1716183038627,-1000.0,0.000129,2]
[327533448,1716183038636,-10000.0,0.000129,2]
[327533449,1716183038645,-41999.8593,0.000129,2]
[327533450,1716183038655,-667.60410323,0.000129,2]
[327533451,1716183038664,-158.43787398,0.000129,2]
[327533452,1716183038674,-3467.1061,0.000129,2]
[327533453,1716183038683,-158.1095261,0.000129,2]
[327533454,1716183038692,-364.18618547,0.000129,2]
[327533455,1716183038702,-1956.71027,0.000129,2]
[327533456,1716183038711,-3528.48941025,0.000129,2]
[327533457,1716183038720,-1956.71026,0.0001297,2]
[327533458,1716183038730,-3454.24037439,0.00012987,2]
[327533459,1716183038739,-58106.9011787,0.00012993,2]
[327533460,1716183038748,-10786.6426585,0.00012993,2]
[327533461,1716183038757,-1675.9827781,0.00012993,2]
[327533462,1716183038767,-157.052014,0.00012997,2]
[327533463,1716183038778,-157.052014,0.00012997,2]
[327533464,1716183038787,-157.052014,0.00012997,2]
[327533465,1716183038799,-157.052014,0.00012997,2]
[327533466,1716183038810,-2016.411,0.00012998,2]
[327533467,1716183038820,-818.24848489,0.00012998,2]
[327533468,1716183038829,-157.052014,0.00012998,2]
[327533469,1716183038838,-157.052014,0.00012998,2]
[327533470,1716183038850,-157.052014,0.00012998,2]
[327533471,1716183038859,-157.052014,0.00012998,2]
[327533472,1716183038869,-157.052014,0.00012998,2]
[327533473,1716183038879,-157.052014,0.00012998,2]
[327533474,1716183038888,-157.052014,0.00012998,2]
[327533475,1716183038898,-157.052014,0.00012998,2]
[327533476,1716183038908,-157.052014,0.00012998,2]
[327533477,1716183038917,-5817.52029764,0.00012999,2]
[327533478,1716183038926,-707.5912601,0.00012999,2]
[327533479,1716183038935,-2248.87101333,0.00012999,2]
[327533480,1716183038945,-159.65185869,0.00012999,2]
[327533481,1716183038955,-1294.14035878,0.00012999,2]
[327533482,1716183038966,-3657909.01016441,0.00013,2]
[327533483,1716183038975,-458.91312968,0.00013,2]
[327533484,1716183038986,-409792.0288153,0.00013,2]
[327533485,1716183038995,-598973.38232224,0.00013,2]
[327533486,1716183039004,-69041.46115678,0.00013,2]
[327533487,1716183039017,-60597.62823265,0.00013,2]
[327533488,1716183039028,-150.0,0.00013,2]
[327533489,1716183039038,-500.0,0.00013,2]
[327533490,1716183039048,-1956.71026,0.00013,2]
[327533491,1716183039057,-1956.71027,0.00013,2]
[327533492,1716183039068,-3737.719,0.00013,2]
[327533493,1716183039078,-3717.598,0.00013,2]
[327533494,1716183039088,-682.14378081,0.00013042,2]
[327533495,1716183039098,-874.5810863,0.00013051,2]
[327533496,1716183039108,-1956.71027,0.0001306,2]
[327533497,1716183039117,-1956.71027,0.0001313,2]
[327533498,1716183039126,-168.43,0.00013194,2]
[327533499,1716183039136,-831.57,0.000134,2]
[327533500,1716183039146,-1000.0,0.00013425,2]
[327533501,1716183039155,-200.0,0.00013699,2]
[327533502,1716183039165,-200.0,0.00013699,2]
[327533503,1716183039175,-200.0,0.00013699,2]
[327533504,1716183039184,-200.0,0.00013699,2]
[327533505,1716183039195,-500.0,0.00013699,2]
[327533506,1716183039204,-200.0,0.00013699,2]
[327533507,1716183039215,-2751.0,0.00013699,2]
[327533508,1716183039224,-6824.57,0.000137,2]
[327533509,1716183039240,-6824.57,0.000137,2]
[327533510,1716183039259,-6824.57,0.000137,2]
[327533511,1716183039276,-6824.57,0.000137,2]
[327533512,1716183039294,-6824.57,0.000137,2]
[327533513,1716183039311,-10000.0,0.00013722,2]
[327533514,1716183039329,-158.14,0.00013973,2]
[327533515,1716183039348,-428.16,0.00013973,2]
[327533516,1716183039364,-151.49,0.00013973,2]
[327533517,1716183039381,-156.76,0.00013973,2]
[327533518,1716183039398,-153.95,0.00013973,2]
[327533519,1716183039411,-164.2,0.00013996,2]
[327533520,1716183039427,-173.93,0.00014388,2]
[327533521,1716183039444,-476.9,0.00014402,2]
[327533522,1716183039461,-500.0,0.00014463,2]
[327533523,1716183039478,-500.0,0.00014463,2]
[327533524,1716183039490,-500.0,0.00014463,2]
[327533525,1716183039506,-162.667,0.00014494,2]
[327533526,1716183039523,-179.0,0.00014494,2]
[327533527,1716183039536,-3237.2,0.00014573,2]
[327533528,1716183039551,-168.43,0.0001466,2]
[327533529,1716183039566,-669.14014886,0.00014736,2]
[327533530,1716183039578,-206.942,0.000148,2]
[327533531,1716183039597,-228.014,0.000148,2]
[327533532,1716183039611,-150.157,0.000148,2]
[327533533,1716183039625,-552.857,0.000148,2]
[327533534,1716183039639,-1659.459,0.000148,2]
[327533535,1716183039653,-1138.278,0.000148,2]
[327533536,1716183039667,-3180.295,0.000148,2]
[327533537,1716183039681,-217.0,0.000148,2]
[327533538,1716183039695,-3526.798,0.000148,2]
[327533539,1716183039709,-289.0,0.000148,2]
[327533540,1716183039723,-2159.0,0.000148,2]
[327533541,1716183039737,-3880.3,0.000148,2]
[327533542,1716183039751,-557.328,0.000148,2]
[327533543,1716183039765,-1642.0,0.000148,2]
[327533544,1716183039781,-831.57,0.00014888,2]
[327533545,1716183039797,-157.94470878,0.00014999,2]
[327533546,1716183039813,-4215.8457198,0.00015,2]
[327533547,1716183039827,-618.8768531,0.00015,2]
[327533548,1716183039841,-200.0,0.00015,2]
[327533549,1716183039855,-257.65395905,0.00015,2]
[327533550,1716183039870,-486.0,0.00015,2]
[327533551,1716183039885,-5900.0,0.00015,2]
[327533552,1716183039900,-364.18618546,0.00015022,2]
[327533553,1716183039914,-300.0,0.00015068,2]
[327533554,1716183039929,-667.60410312,0.00015355,2]
[327533555,1716183039943,-164.2,0.00015396,2]
[327533556,1716183039957,-868.29,0.00015467,2]
[327533557,1716183039971,-152.85901212,0.00015659,2]
[327533558,1716183039985,-166.16,0.00015831,2]
[327533559,1716183040000,-167.42,0.00015831,2]
[327533560,1716183040015,-9999.99,0.00016116,2]